fUSD/lending_fUSD_20240702
["ID","MTS","AMOUNT","RATE_DAILY","PERIOD"]
[330888185,1719909038346,-3311.8434043,0.000139,2]
[330888186,1719909038355,-500.0,0.000139,5]
[330888187,1719909038365,-2000.0,0.00013973,3]
[330888188,1719909038375,-4551.1404505,0.00013999,2]
[330888189,1719909038384,-9240.07117437,0.00013999,2]
[330888190,1719909038394,-290104.31550265,0.00014,2]
[330888191,1719909038442,-3090.6189,0.00014,2]
[330888200,1719909040416,-487.0892718,0.00014,2]
[330888201,1719909040521,-1217.89072931,0.00014,2]
[330888202,1719909040702,-1359.13066915,0.00014,2]
[330888203,1719909040729,-2078.47176684,0.00014,2]
[330888204,1719909040859,-1765.80085879,0.000138,2]
[330888205,1719909041723,-674.77624646,0.000138,2]
[330888208,1719909043273,-881.93428796,0.000138,2]
[330888209,1719909043324,-625.0,0.000138,2]
[330888210,1719909043584,-1762.55258354,0.000138,2]
[330888263,1719909046282,-3127.75,0.000138,2]
[330888266,1719909046294,-5776.48311932,0.000138,2]
[330888270,1719909046376,-1719.79999999,0.000138,2]
[330888271,1719909046399,-16684.55625171,0.000138,2]
[330888272,1719909046408,-319.10398719,0.000139,2]
[330888273,1719909046418,-126397.98503053,0.00014,2]
[330888274,1719909046515,-940.63593061,0.00014,2]
[330888275,1719909046537,-1509.72176309,0.00014,2]
[330888284,1719909150116,194.68,0.0002099,30]
[330888290,1719909271709,250.0,0.0001399,30]
[330888291,1719909272214,170.17,0.0001398,30]
[330888292,1719909272243,79.83,0.0001398,30]
[330888293,1719909272723,250.0,0.0001397,30]
[330888294,1719909292605,151.0,0.00011199,2]
[330888295,1719909292649,500.0,0.00011199,2]
[330888296,1719909293216,500.0,0.00011199,2]
[330888297,1719909293564,151.0,0.00011199,2]
[330888298,1719909293596,500.0,0.00011199,2]
[330888299,1719909293932,500.0,0.00011199,2]
[330888300,1719909294273,500.0,0.00011199,2]
[330888301,1719909294512,151.0,0.00011199,2]
[330888302,1719909294657,500.0,0.00011199,2]
[330888303,1719909294817,151.0,0.00011199,2]
[330888304,1719909294992,500.0,0.00011199,2]
[330888305,1719909295389,500.0,0.00011199,2]
[330888306,1719909295817,642.0,0.00011199,2]
[330888307,1719909295849,151.0,0.00011199,2]
[330888308,1719909296085,151.0,0.00011199,2]
[330888309,1719909296435,197.0,0.00011199,2]
[330888313,1719909332235,500.0,0.00011199,2]
[330888314,1719909332569,500.0,0.00011199,2]
[330888315,1719909332910,500.0,0.00011199,2]
[330888316,1719909333523,500.0,0.00011199,2]
[330888317,1719909334083,500.0,0.00011199,2]
[330888318,1719909334426,500.0,0.00011199,2]
[330888319,1719909334781,500.0,0.00011199,2]
[330888320,1719909335325,500.0,0.00011199,2]
[330888322,1719909335850,500.0,0.00011199,2]
[330888323,1719909336211,500.0,0.00011199,2]
[330888324,1719909336572,500.0,0.00011199,2]
[330888325,1719909337084,500.0,0.00011199,2]
[330888326,1719909337282,500.0,0.00011199,2]
[330888327,1719909337666,500.0,0.00011199,2]
[330888328,1719909338640,500.0,0.00011199,2]
[330888329,1719909339019,500.0,0.00011199,2]
[330888330,1719909339345,500.0,0.00011199,2]
[330888331,1719909340281,500.0,0.00011199,2]
[330888332,1719909340635,500.0,0.00011199,2]
[330888333,1719909341823,500.0,0.00011199,2]
[330888334,1719909342272,500.0,0.00011199,2]
[330888335,1719909342659,500.0,0.00011199,2]
[330888336,1719909342995,500.0,0.00011199,2]
[330888337,1719909343341,500.0,0.00011199,2]
[330888338,1719909343689,500.0,0.00011199,2]
[330888339,1719909344030,500.0,0.00011199,2]
[330888340,1719909344299,15551.41752282,0.000112,2]
[330888341,1719909344387,500.0,0.00011199,2]
[330888342,1719909345252,500.0,0.00011199,2]
[330888343,1719909345598,500.0,0.00011199,2]
[330888344,1719909345964,500.0,0.00011199,2]
[330888345,1719909346293,500.0,0.00011199,2]
[330888347,1719909347343,500.0,0.00011199,2]
[330888348,1719909347576,500.0,0.00011199,2]
[330888349,1719909348107,500.0,0.00011199,2]
[330888350,1719909349061,500.0,0.00011199,2]
[330888351,1719909349411,500.0,0.00011199,2]
[330888352,1719909349740,500.0,0.00011199,2]
[330888353,1719909350090,500.0,0.00011199,2]
[330888354,1719909350688,500.0,0.00011199,2]
[330888355,1719909350808,500.0,0.00011199,2]
[330888356,1719909351166,500.0,0.00011199,2]
[330888357,1719909351547,500.0,0.00011199,2]
[330888358,1719909351910,500.0,0.00011199,2]
[330888359,1719909352262,500.0,0.00011199,2]
[330888360,1719909353216,500.0,0.00011199,2]
[330888361,1719909353619,500.0,0.00011199,2]
[330888362,1719909353989,500.0,0.00011199,2]
[330888363,1719909354335,500.0,0.00011199,2]
[330888364,1719909355261,500.0,0.00011199,2]
[330888365,1719909355603,500.0,0.00011199,2]
[330888366,1719909355966,500.0,0.00011199,2]
[330888367,1719909356517,500.0,0.00011199,2]
[330888368,1719909356851,500.0,0.00011199,2]
[330888369,1719909357196,500.0,0.00011199,2]
[330888370,1719909357792,500.0,0.00011199,2]
[330888371,1719909358034,500.0,0.00011199,2]
[330888372,1719909358510,500.0,0.00011199,2]
[330888373,1719909359087,500.0,0.00011199,2]
[330888374,1719909359425,500.0,0.00011199,2]
[330888375,1719909359787,500.0,0.00011199,2]
[330888376,1719909360145,575.0,0.00011199,2]
[330888380,1719909391945,175.0,0.0001399,30]
[330888381,1719909392481,175.0,0.0001398,30]
[330888382,1719909392955,175.0,0.0001397,30]
[330888390,1719909512072,150.5,0.0001399,30]
[330888391,1719909512757,150.5,0.0001398,30]
[330888392,1719909513224,150.5,0.0001397,30]
[330888395,1719909634677,150.5,0.0001399,30]
[330888396,1719909635141,150.5,0.0001398,30]
[330888397,1719909635607,150.5,0.0001397,30]
[330888401,1719909751888,150.5,0.0001399,30]
[330888402,1719909752178,180.82,0.0001398,30]
[330888403,1719909818590,150.0,0.00011199,2]
[330888404,1719909818611,150.0,0.00011199,2]
[330888405,1719909818631,150.0,0.00011199,2]
[330888406,1719909818651,150.0,0.00011199,2]
[330888407,1719909818672,150.0,0.00011199,2]
[330888408,1719909818692,150.0,0.00011199,2]
[330888409,1719909818713,150.0,0.00011199,2]
[330888410,1719909818740,8190.07117437,0.00011199,2]
[330888411,1719909872491,153.81,0.0001399,30]
[330888413,1719909888637,758.24633682,0.00011199,2]
[330888415,1719909900508,218.82423676,0.00011199,2]
[330888416,1719909975073,720.09204165,0.00011199,2]
[330888417,1719910017444,602.8,0.00010937,2]
[330888418,1719910048433,599.27979208,0.00011199,2]
[330888436,1719910232470,-931.31528354,0.000118,2]
[330888437,1719910232480,-253.90432169,0.00012314,2]
[330888438,1719910232490,-155.0,0.00012314,2]
[330888439,1719910232499,-150.0,0.000126,2]
[330888440,1719910232508,-250.0,0.00012869,2]
[330888441,1719910232519,-500.0,0.00012871,2]
[330888442,1719910232528,-448.79,0.00012876,2]
[330888443,1719910232538,-168.61,0.00012887,2]
[330888444,1719910232547,-160.11,0.00012964,2]
[330888445,1719910232562,-250.0,0.00013017,2]
[330888446,1719910232582,-356.61291473,0.00013017,2]
[330888447,1719910232618,-5710.98748693,0.00013017,2]
[330888448,1719910232630,-2121.37763752,0.00013017,2]
[330888449,1719910232643,-466.63551131,0.00013017,2]
[330888450,1719910232656,-1851.61644951,0.00013017,2]
[330888451,1719910232665,-150.0,0.00013096,2]
[330888452,1719910232675,-155.0,0.00013128,2]
[330888453,1719910232685,-308.12292157,0.00013128,2]
[330888454,1719910232695,-300.0,0.00013143,2]
[330888455,1719910232704,-407.86311341,0.00013144,2]
[330888456,1719910232716,-592.13688659,0.00013144,2]
[330888458,1719910232726,-499.99,0.00013144,2]
[330888460,1719910232735,-2172.66402492,0.00013144,2]
[330888524,1719910238440,-597.4,0.00013144,2]
[330888525,1719910238473,-265.88597508,0.00013144,2]
[330888526,1719910238484,-160.11,0.00013189,2]
[330888527,1719910238494,-188.32402492,0.00013201,2]
[330888528,1719910238570,-414.47597508,0.00013201,2]
[330888529,1719910238580,-200.0,0.000133,4]
[330888530,1719910238590,-500.0,0.000134,4]
[330888531,1719910238600,-160.11,0.00013414,2]
[330888532,1719910238610,-179.06,0.00013499,2]
[330888533,1719910238620,-800.0,0.000135,4]
[330888534,1719910238630,-159.03252278,0.00013516,2]
[330888535,1719910238640,-195.92266575,0.00013516,2]
[330888536,1719910238650,-364.46359716,0.00013516,2]
[330888537,1719910238660,-174.52253076,0.00013543,2]
[330888538,1719910238670,-366.11090361,0.00013543,2]
[330888539,1719910238680,-1338.35,0.00013567,2]
[330888540,1719910238690,-1100.0,0.000136,4]
[330888541,1719910238699,-160.11,0.0001364,2]
[330888542,1719910238709,-2751.0,0.00013699,2]
[330888543,1719910238719,-200.0,0.00013699,2]
[330888544,1719910238729,-580.02,0.00013699,2]
[330888545,1719910238739,-1400.0,0.000137,5]
[330888546,1719910238748,-4549.56887807,0.0001378,2]
[330888547,1719910238758,-12962.5488,0.0001379,2]
[330888549,1719910238768,-200.0,0.000138,5]
[330888551,1719910238778,-534.98,0.00013834,2]
[330888553,1719910238788,-3000.0,0.0001388,2]
[330888554,1719910238798,-4551.1404505,0.00013899,2]
[330888555,1719910238807,-995.8186,0.000139,2]
[330888557,1719910238817,-47096.856,0.000139,2]
[330888558,1719910238827,-6739.3533,0.000139,2]
[330888559,1719910238836,-2500.0,0.000139,2]
[330888560,1719910238846,-200.0,0.000139,5]
[330888561,1719910238856,-8640.20697407,0.000139,2]
[330888562,1719910238865,-1000.0,0.000139,2]
[330888563,1719910238875,-174.95455157,0.000139,2]
[330888564,1719910238884,-193.2637923,0.000139,2]
[330888565,1719910238894,-606.67240164,0.000139,2]
[330888566,1719910238904,-162.32881535,0.00013906,2]
[330888567,1719910238914,-15252.21382534,0.00013906,2]
[330888568,1719910238924,-426.52,0.0001395,3]
[330888569,1719910238933,-3000.0,0.0001396,2]
[330888570,1719910238943,-2000.0,0.00013973,3]
[330888571,1719910238952,-3009.51348492,0.0001399,3]
[330888572,1719910238962,-193.38921263,0.0001399,2]
[330888573,1719910238971,-2705.56348769,0.00013997,2]
[330888574,1719910238981,-209.7635483,0.00013999,2]
[330888575,1719910238991,-4464.82660764,0.00013999,2]
[330888576,1719910239001,-300.0,0.00013999,5]
[330888577,1719910239011,-200.0,0.00013999,2]
[330888578,1719910239022,-484593.79241419,0.00014,2]
[330888579,1719910239032,-3350.83494059,0.00014,2]
[330888580,1719910239042,-3174214.87128871,0.00014,2]
[330888581,1719910239055,-309707.37053182,0.00014,2]
[330888582,1719910239076,-1123.19696144,0.00014,2]
[330888585,1719910240570,-449.03088406,0.00014,2]
[330888598,1719910240722,-768.95049403,0.00014,2]
[330888599,1719910240873,-3063.3676006,0.00014,2]
[330888600,1719910241018,-3931.66909592,0.00014,2]
[330888688,1719910243490,-250.0,0.00013045,2]
[330888689,1719910243499,-461.82512358,0.00014,2]
[330888690,1719910243535,-83069.63001915,0.00014,2]
[330888708,1719910246535,-1670.23343594,0.00014,2]
[330888709,1719910246547,-25512.78145001,0.00014,2]
[330888710,1719910246588,-590.82,0.00014,2]
[330888711,1719910246643,-773.93961878,0.00014,2]
[330888712,1719910246803,-1651.07245401,0.00014,2]
[330888713,1719910246816,-5877.48859263,0.00014,2]
[330888714,1719910246828,-3980.65113712,0.00014,2]
[330888715,1719910246857,-1477.27432903,0.00014,2]
[330888716,1719910246869,-629.33323464,0.00014,2]
[330888765,1719910255160,-253.24,0.00011201,2]
[330888767,1719910489331,-286.78903156,0.00011201,2]
[330888768,1719910489535,-286.78903156,0.00011201,2]
[330888769,1719910489752,-243.83332965,0.00011201,2]
[330888770,1719910490142,-150.0,0.00011201,2]
[330888771,1719910492968,-150.0,0.00011201,2]
[330888772,1719910493468,-150.0,0.00011201,2]
[330888773,1719910495566,-150.0,0.00011201,2]
[330888774,1719910497834,-150.0,0.00011201,2]
[330888775,1719910498264,-150.0,0.00011201,2]
[330888776,1719910498653,-150.0,0.00011201,2]
[330888777,1719910499443,-150.0,0.00011201,2]
[330888778,1719910500454,-150.0,0.00011201,2]
[330888779,1719910503867,-150.0,0.00011201,2]
[330888780,1719910504396,-150.0,0.00011201,2]
[330888781,1719910505503,-150.0,0.00011201,2]
[330888782,1719910507798,-150.0,0.00011201,2]
[330888783,1719910508369,-150.0,0.00011201,2]
[330888784,1719910528721,9240.07117437,0.00011199,2]
[330888785,1719910554313,617.06,0.00011018,2]
[330888786,1719910563321,300.0,0.000112,2]
[330888787,1719910630752,311.15090226,0.00011199,2]
[330888789,1719910729644,9240.07117437,0.00011199,2]
[330888790,1719910734493,155.2091494,0.00011199,2]
[330888791,1719910746422,2236.78903156,0.00011199,2]
[330888792,1719910909612,174.52253076,0.00011199,2]
[330888793,1719910912760,366.11090361,0.00011199,2]
[330888794,1719910918391,159.03252278,0.00011199,2]
[330888795,1719910936257,195.92266575,0.00011199,2]
[330888796,1719910938746,3942.78736515,0.00011199,2]
[330888797,1719910946544,155.0,0.00011199,2]
[330888798,1719910947707,364.46359716,0.00011199,2]
[330888800,1719911068770,164.42254988,0.00011199,2]
[330888801,1719911099371,187.42529865,0.00011199,2]
[330888803,1719911121801,586.2,0.00010736,2]
[330888805,1719911298168,221.39419194,0.00010736,2]
[330888806,1719911298193,34.92705239,0.00010736,2]
[330888808,1719911374670,9238.1893607,0.00011199,2]
[330888809,1719911425190,150.0,0.00011199,2]
[330888810,1719911425212,150.0,0.00011199,2]
[330888811,1719911425234,150.0,0.00011199,2]
[330888812,1719911425260,150.0,0.00011199,2]
[330888813,1719911425283,150.0,0.00011199,2]
[330888814,1719911425307,150.0,0.00011199,2]
[330888815,1719911425328,150.0,0.00011199,2]
[330888816,1719911425350,150.0,0.00011199,2]
[330888817,1719911425370,150.0,0.00011199,2]
[330888818,1719911425396,1726.01768298,0.00011199,2]
[330888825,1719911432694,-450.32528097,0.00012302,2]
[330888826,1719911432703,-250.0,0.00012535,2]
[330888827,1719911432713,-2537.72,0.00012549,2]
[330888828,1719911432722,-300.0,0.0001257,2]
[330888829,1719911432731,-23890.0,0.00012571,2]
[330888830,1719911432741,-1852.42,0.00012571,2]
[330888831,1719911432750,-150.0,0.000126,2]
[330888832,1719911432763,-173.18,0.000127,2]
[330888833,1719911432773,-250.0,0.000127,2]
[330888834,1719911432783,-168.04,0.00012728,2]
[330888835,1719911432793,-500.0,0.00012744,2]
[330888836,1719911432803,-499.99,0.00012801,2]
[330888837,1719911432814,-1000.0,0.00012808,2]
[330888838,1719911432827,-1338.35,0.00012808,2]
[330888839,1719911432836,-1958.98,0.0001283,2]
[330888840,1719911432846,-154.82,0.00012862,2]
[330888841,1719911432856,-154.82,0.00012958,2]
[330888842,1719911432865,-586.2,0.00012999,2]
[330888843,1719911432874,-4470.1345927,0.00013003,2]
[330888844,1719911432886,-79.43428537,0.00013003,2]
[330888845,1719911432897,-154.82,0.00013053,2]
[330888846,1719911432908,-154.82,0.00013149,2]
[330888847,1719911432917,-232.09,0.0001322,2]
[330888848,1719911432926,-154.82,0.00013245,2]
[330888849,1719911432935,-154.82,0.00013341,2]
[330888850,1719911432944,-191.82,0.00013394,2]
[330888851,1719911432954,-300.0,0.000134,4]
[330888852,1719911432963,-154.82,0.00013436,2]
[330888853,1719911432972,-6019.176,0.00013443,2]
[330888854,1719911432981,-700.0,0.000135,4]
[330888855,1719911432991,-154.82,0.00013532,2]
[330888856,1719911433000,-815.45312623,0.00013543,2]
[330888857,1719911433010,-684.10705351,0.00013577,2]
[330888858,1719911433019,-1100.0,0.000136,4]
[330888859,1719911433028,-1332.09224201,0.00013699,2]
[330888860,1719911433044,-363.6,0.00013699,2]
[330888861,1719911433055,-1055.30775799,0.00013699,2]
[330888862,1719911433066,-573.58,0.00013699,2]
[330888863,1719911433076,-200.0,0.00013699,2]
[330888864,1719911433085,-768.09,0.00013699,2]
[330888865,1719911433095,-1500.0,0.000137,5]
[330888866,1719911433105,-7777.97866254,0.00013703,2]
[330888867,1719911433116,-39318.87733746,0.00013703,2]
[330888868,1719911433126,-420.0,0.00013791,2]
[330888869,1719911433135,-400.8501,0.00013797,2]
[330888870,1719911433145,-6739.3533,0.000138,2]
[330888871,1719911433155,-1900.0,0.000138,5]
[330888872,1719911433164,-3006.31199,0.0001386,2]
[330888873,1719911433173,-426.52,0.00013887,3]
[330888874,1719911433183,-7189.7871,0.00013897,2]
[330888875,1719911433192,-12962.5488,0.00013899,2]
[330888876,1719911433201,-1000.0,0.00013899,2]
[330888877,1719911433211,-2500.0,0.00013899,2]
[330888878,1719911433220,-412.61839352,0.00013899,2]
[330888879,1719911433229,-3666.2769,0.000139,2]
[330888880,1719911433239,-162.32881535,0.000139,2]
[330888881,1719911433248,-1000.0,0.000139,2]
[330888882,1719911433258,-995.8186,0.000139,2]
[330888883,1719911433267,-300.0,0.000139,5]
[330888884,1719911433276,-15252.21382534,0.000139,2]
[330888885,1719911433286,-521.29908352,0.000139,2]
[330888886,1719911433295,-490.05250324,0.000139,2]
[330888887,1719911433304,-1090.36170002,0.000139,2]
[330888888,1719911433315,-533.2628,0.0001393,2]
[330888889,1719911433325,-2000.0,0.00013973,3]
[330888890,1719911433335,-188.91025516,0.0001399,2]
[330888891,1719911433344,-188.91025516,0.0001399,2]
[330888892,1719911433359,-2705.56348769,0.00013997,2]
[330888893,1719911433369,-200.0,0.00013999,2]
[330888894,1719911433379,-300.0,0.00013999,5]
[330888895,1719911433389,-209.7635483,0.00013999,2]
[330888896,1719911433399,-4464.82660764,0.00013999,2]
[330888897,1719911433408,-3870.40608965,0.00013999,2]
[330888898,1719911433418,-305.42303826,0.00013999,2]
[330888899,1719911433427,-547893.35084324,0.00014,2]
[330888900,1719911433440,-223472.75928962,0.00014,2]
[330888901,1719911433451,-1111.46103322,0.00014,2]
[330888902,1719911433463,-8980.97957088,0.00014,2]
[330888903,1719911433474,-4228.0863352,0.00014,2]
[330888904,1719911433486,-1085.42033485,0.00014,2]
[330888905,1719911433497,-77173.16446411,0.00014,2]
[330888906,1719911433509,-32980.41639929,0.00014,2]
[330888907,1719911433612,-460.43123519,0.00014,2]
[330888908,1719911433624,-385.01912969,0.00014,2]
[330888909,1719911433636,-328.8373251,0.00014,2]
[330888910,1719911433647,-658.25,0.00014,2]
[330888911,1719911433658,-7823.73689433,0.00014,2]
[330888913,1719911437714,-522.501618,0.0001224,2]
[330888914,1719911437758,-3452.153752,0.0001224,2]
[330888915,1719911437769,-4534.20289766,0.00013576,2]
[330888916,1719911437780,-14509.88254871,0.00013576,2]
[330888917,1719911437790,-187.34869197,0.000139,2]
[330888918,1719911437800,-3784374.92832797,0.00014,2]
[330888919,1719911437811,-309707.37053182,0.00014,2]
[330888920,1719911437827,-1000.92115212,0.00014,2]
[330888921,1719911438085,-1500.0,0.00014,2]
[330888922,1719911438100,-712.08271485,0.00014,2]
[330888923,1719911438111,-609.04084905,0.00014,2]
[330888924,1719911438123,-2084.0327375,0.00014,2]
[330888925,1719911438135,-2158.98320904,0.00014,2]
[330888926,1719911439885,-505.53116172,0.000138,2]
[330888927,1719911439899,-494.46883828,0.000138,2]
[330888928,1719911439910,-407.69260603,0.000139,2]
[330888929,1719911439923,-1571.69161397,0.000139,2]
[330888930,1719911440130,-5185.24013832,0.000139,2]
[330888931,1719911440209,-1475.58261575,0.000139,2]
[330888932,1719911440219,-2064.49506034,0.00014,2]
[330888933,1719911440231,-939.63137312,0.00014,2]
[330888934,1719911440299,-3015.30344796,0.00014,2]
[330888935,1719911440311,-2141.25728077,0.00014,2]
[330888936,1719911440326,-2191.28868631,0.00014,2]
[330888943,1719911442808,-4065.83103481,0.00014,2]
[330888944,1719911442824,-1641.75281423,0.00014,2]
[330888945,1719911442835,-474733.04911295,0.00014,2]
[330888946,1719911442846,-1552739.1641672,0.00014,2]
[330888947,1719911443111,-7013.07374641,0.00014,2]
[330889140,1719911449868,-760.67011937,0.00013574,2]
[330889141,1719911467167,-261.07620313,0.00013574,2]
[330889142,1719911470392,-269.64824773,0.00013574,2]
[330889143,1719911471389,-208.60542977,0.00013574,2]
[330889153,1719911603672,9240.07117437,0.00011199,2]
[330889177,1719911793195,9236.30754703,0.00011199,2]
[330889185,1719911851950,526.92735298,0.00011199,2]
[330889189,1719911874538,313.95040428,0.00011199,2]
[330889205,1719912003086,150.0,0.00011199,2]
[330889206,1719912003283,150.0,0.00011199,2]
[330889207,1719912003456,150.0,0.00011199,2]
[330889208,1719912003652,300.0,0.00011199,2]
[330889242,1719912278367,574.06,0.000109,2]
[330889262,1719912424216,9238.1893607,0.00011199,2]
[330889301,1719912631902,-1050.0,0.00012302,2]
[330889302,1719912631912,-1520.32478887,0.00012503,2]
[330889303,1719912631922,-341.77459393,0.00012603,2]
[330889304,1719912631934,-3540.04047111,0.00012603,2]
[330889305,1719912632004,-11874.95642053,0.00012603,2]
[330889306,1719912632015,-432.92,0.00012603,2]
[330889307,1719912632027,-7710.30851443,0.00012603,2]
[330889308,1719912632036,-250.0,0.00012603,2]
[330889309,1719912632047,-1493.15,0.00012752,2]
[330889310,1719912632056,-500.0,0.00012754,2]
[330889311,1719912632065,-250.0,0.00012791,2]
[330889312,1719912632074,-185.67,0.00012791,2]
[330889313,1719912632084,-168.04,0.00012791,2]
[330889314,1719912632093,-1000.0,0.00012805,2]
[330889315,1719912632103,-151.25509176,0.00013012,2]
[330889316,1719912632112,-717.75,0.00013124,2]
[330889317,1719912632122,-574.06,0.00013164,2]
[330889318,1719912632131,-1036.0,0.000134,2]
[330889319,1719912632140,-955.85753929,0.00013472,2]
[330889320,1719912632150,-9238.1893607,0.00013472,2]
[330889321,1719912632160,-635.34536723,0.00013474,2]
[330889322,1719912632169,-191.82,0.00013498,2]
[330889323,1719912632182,-519.99643975,0.00013543,2]
[330889324,1719912632194,-544.44616769,0.00013543,2]
[330889325,1719912632204,-150.0,0.00013647,2]
[330889326,1719912632214,-150.0,0.00013669,2]
[330889327,1719912632223,-150.0,0.00013692,2]
[330889328,1719912632232,-150.0,0.00013697,2]
[330889329,1719912632241,-499.99,0.00013697,2]
[330889330,1719912632251,-629.2,0.00013699,2]
[330889331,1719912632261,-200.0,0.00013699,2]
[330889332,1719912632270,-2751.0,0.00013699,2]
[330889333,1719912632280,-970.16,0.00013699,2]
[330889334,1719912632289,-150.0,0.00013699,2]
[330889335,1719912632298,-150.0,0.00013699,2]
[330889336,1719912632308,-150.0,0.00013717,2]
[330889337,1719912632317,-150.0,0.00013727,2]
[330889338,1719912632326,-150.0,0.00013735,2]
[330889339,1719912632337,-150.0,0.00013763,2]
[330889340,1719912632347,-150.0,0.00013765,2]
[330889341,1719912632357,-150.0,0.00013768,2]
[330889342,1719912632367,-385.10220627,0.00013783,2]
[330889343,1719912632377,-150.0,0.00013796,2]
[330889344,1719912632386,-353.5,0.00013797,2]
[330889345,1719912632395,-7817.175,0.00013799,2]
[330889347,1719912632405,-39467.7848,0.00013799,2]
[330889348,1719912632414,-70808.7136,0.00013799,2]
[330889349,1719912632424,-469.81777462,0.00013799,2]
[330889350,1719912632433,-635.11510261,0.00013799,2]
[330889351,1719912632444,-318.9157013,0.00013799,2]
[330889352,1719912632454,-2506.61841283,0.00013799,2]
[330889353,1719912632464,-1000.0,0.000138,2]
[330889354,1719912632474,-217.28,0.000138,2]
[330889355,1719912632484,-150.0,0.00013803,2]
[330889356,1719912632493,-150.0,0.00013805,2]
[330889357,1719912632503,-150.0,0.00013826,2]
[330889359,1719912632512,-150.0,0.00013838,2]
[330889361,1719912632522,-150.0,0.00013841,2]
[330889363,1719912632532,-150.0,0.00013845,2]
[330889365,1719912632542,-247.0938158,0.00013849,2]
[330889366,1719912632551,-150.0,0.00013849,2]
[330889368,1719912632560,-150.0,0.00013851,2]
[330889369,1719912632569,-3000.0,0.0001386,2]
[330889370,1719912632578,-150.0,0.00013863,2]
[330889371,1719912632588,-853.94,0.00013863,2]
[330889372,1719912632597,-853.94,0.00013863,2]
[330889373,1719912632606,-853.94,0.00013863,2]
[330889374,1719912632616,-853.94,0.00013863,2]
[330889375,1719912632625,-853.94,0.00013863,2]
[330889376,1719912632634,-500.0,0.00013887,2]
[330889377,1719912632643,-200.0,0.00013887,2]
[330889378,1719912632652,-500.0,0.00013888,2]
[330889379,1719912632662,-500.0,0.00013888,2]
[330889380,1719912632671,-200.0,0.00013888,2]
[330889381,1719912632680,-209.96997035,0.00013889,2]
[330889382,1719912632688,-150.0,0.0001389,2]
[330889383,1719912632697,-150.0,0.00013891,2]
[330889384,1719912632974,-244936.7381,0.00013899,2]
[330889385,1719912632987,-500.0,0.00013899,2]
[330889386,1719912632997,-150.0,0.00013922,2]
[330889387,1719912633007,-150.0,0.00013945,2]
[330889388,1719912633016,-150.0,0.0001396,2]
[330889389,1719912633026,-2000.0,0.00013973,3]
[330889390,1719912633036,-237.8489407,0.00013989,2]
[330889391,1719912633046,-5396.26147485,0.00013999,2]
[330889392,1719912633063,-19051.05697284,0.00013999,2]
[330889393,1719912633080,-2503.25,0.00013999,2]
[330889394,1719912633091,-976.99928413,0.00013999,2]
[330889395,1719912633102,-540.396828,0.00013999,2]
[330889396,1719912633114,-399.20391486,0.00013999,2]
[330889397,1719912633130,-29313.85132534,0.00013999,2]
[330889409,1719912637972,-600.0,0.00013999,2]
[330889410,1719912638192,-309707.37053182,0.00013999,2]
[330889411,1719912638206,-26825.602897,0.00013999,2]
[330889412,1719912638290,-1000.42642938,0.00013999,2]
[330889420,1719912640121,-589.0056848,0.00013999,2]